bitfinex/quotes_BTCUSD_20240701
["timestamp","ask_amount","ask_price","bid_price","bid_amount"]
[1719846701205,0.0133283,63067.0,63060.0,0.1]
[1719846701421,0.07934304,63065.0,63060.0,0.1]
[1719846701956,0.0133283,63067.0,63060.0,0.1]
[1719846702157,0.0153283,63067.0,63060.0,0.1]
[1719846702972,0.002,63065.0,63060.0,0.1]
[1719846703331,0.0133283,63067.0,63060.0,0.1]
[1719846703989,0.0133283,63067.0,63060.0,0.258577]
[1719846704189,0.0133283,63067.0,63060.0,0.1]
[1719846704388,0.0133283,63067.0,63061.0,0.158576]
[1719846704659,0.0133283,63067.0,63062.0,0.158573]
[1719846704956,0.0133283,63067.0,63063.0,0.15857]
[1719846704957,0.0153283,63067.0,63063.0,0.15857]
[1719846705159,0.0163283,63067.0,63063.0,0.15857]
[1719846705359,0.0163283,63067.0,63064.0,0.158566]
[1719846705558,0.0183283,63067.0,63064.0,0.158566]
[1719846705759,0.01566462,63066.0,63064.0,0.158566]
[1719846706163,0.0153283,63067.0,63062.0,0.317146]
[1719846706519,0.0153283,63067.0,63060.0,0.11844857]
[1719846706520,0.07934304,63063.0,63060.0,0.11844857]
[1719846706951,0.01566462,63066.0,63060.0,0.11844857]
[1719846706952,0.01569662,63062.0,63060.0,0.11844857]
[1719846707330,0.0949871,63065.0,63060.0,0.11844857]
[1719846707538,0.01569472,63061.0,63060.0,0.11844857]
[1719846707733,0.0949871,63064.0,63060.0,0.11844857]
[1719846708165,0.01569852,63063.0,63060.0,0.11844857]
[1719846708757,0.0949871,63065.0,63060.0,0.11844857]
[1719846708920,0.01569662,63062.0,63060.0,0.12144857]
[1719846709142,0.13406218,63067.0,63060.0,0.12144857]
[1719846709143,0.0949871,63066.0,63060.0,0.12144857]
[1719846709594,0.01570231,63065.0,63060.0,0.11844857]
[1719846709756,0.01570231,63065.0,63060.0,0.12344857]
[1719846710421,0.01570231,63065.0,63060.0,0.105]
[1719846710964,0.01570041,63065.0,63060.0,0.105]
[1719846711308,0.01486708,63064.0,63060.0,0.105]
[1719846711534,0.094989,63066.0,63060.0,0.105]
[1719846711660,0.01486518,63063.0,63060.0,0.105]
[1719846711879,0.094989,63066.0,63060.0,0.1]
[1719846712123,0.01491294,63062.0,63060.0,0.1]
[1719846712325,0.1103173,63067.0,63060.0,0.101]
[1719846712522,0.01491105,63061.0,63060.0,0.101]
[1719846712726,0.094989,63066.0,63060.0,0.1]
[1719846713182,0.01491864,63065.0,63060.0,0.1]
[1719846713411,0.01491864,63065.0,63060.0,0.105]
[1719846713545,0.01491864,63065.0,63060.0,0.263578]
[1719846713753,0.0103283,63067.0,63060.0,0.105]
[1719846714036,0.01491674,63064.0,63060.0,0.322153]
[1719846714204,0.0103283,63067.0,63062.0,0.158573]
[1719846714538,0.0103283,63067.0,63061.0,0.158575]
[1719846714539,0.01492054,63066.0,63061.0,0.158575]
[1719846714741,0.01492054,63066.0,63062.0,0.158573]
[1719846714989,0.01492054,63066.0,63060.0,0.317153]
[1719846714990,0.01492054,63066.0,63061.0,0.158576]
[1719846715199,0.01492054,63066.0,63059.0,0.1]
[1719846715200,0.1438,63065.0,63059.0,0.1]
[1719846715406,0.23880388,63065.0,63059.0,0.1]
[1719846715608,0.01491674,63064.0,63059.0,0.1]
[1719846716079,0.10992062,63064.0,63060.0,0.001]
[1719846716425,0.10992062,63064.0,63059.0,0.1]
[1719846716631,0.10995516,63064.0,63058.0,0.1]
[1719846717091,0.09503842,63063.0,63058.0,0.1]
[1719846717291,0.10995326,63063.0,63058.0,0.1]
[1719846717592,0.09503842,63062.0,63059.0,0.002]
[1719846717944,0.01491105,63061.0,63059.0,0.002]
[1719846718153,0.09503842,63063.0,63059.0,0.002]
[1719846718363,0.01490915,63060.0,63059.0,0.002]
[1719846718564,0.09503842,63062.0,63059.0,0.002]
[1719846718761,0.01490915,63060.0,63059.0,0.002]
[1719846719009,0.09503842,63061.0,63059.0,0.002]
[1719846719183,0.01490915,63060.0,63059.0,0.002]
[1719846719389,0.10994757,63060.0,63059.0,0.002]
[1719846719813,0.10994757,63060.0,63056.0,0.11935923]
[1719846720168,0.10994757,63060.0,63058.0,0.005]
[1719846720819,0.10994757,63060.0,63056.0,0.11935923]
[1719846721040,0.10994757,63060.0,63049.0,0.317211]
[1719846721041,0.09503842,63059.0,63049.0,0.158606]
[1719846721240,0.09503842,63058.0,63056.0,0.003]
[1719846721441,0.09503842,63063.0,63058.0,0.0645]
[1719846721694,0.0083283,63067.0,63066.0,0.475692]
[1719846721892,0.0083283,63067.0,63066.0,1.13398998]
[1719846722097,0.0083283,63067.0,63066.0,1.23398998]
[1719846722266,0.0083283,63067.0,63066.0,1.21398998]
[1719846722497,0.0083283,63067.0,63066.0,0.417395]
[1719846722930,0.0083283,63067.0,63066.0,0.419395]
[1719846723133,0.0083283,63067.0,63066.0,0.439395]
[1719846723365,0.0083283,63067.0,63066.0,0.437395]
[1719846723596,0.0083283,63067.0,63066.0,0.258831]
[1719846723748,0.0083283,63067.0,63066.0,0.1]
[1719846723949,0.0083283,63067.0,63062.0,0.1]
[1719846724152,0.1475283,63067.0,63062.0,0.1]
[1719846724370,0.1475283,63067.0,63059.0,0.158831]
[1719846724371,0.2435732,63067.0,63066.0,0.007]
[1719846724571,0.26733443,63067.0,63066.0,0.007]
[1719846725235,0.26733443,63067.0,63066.0,0.011]
[1719846725236,0.1485283,63067.0,63066.0,0.011]
[1719846725439,0.1485283,63067.0,63066.0,0.007]
[1719846725766,0.1485283,63067.0,63066.0,0.008]
[1719846726176,0.1475283,63067.0,63066.0,0.001]
[1719846726427,0.16071383,63067.0,63066.0,0.001]
[1719846727624,0.20371383,63067.0,63066.0,0.005]
[1719846727841,0.34630629,63067.0,63066.0,0.005]
[1719846727996,0.20371383,63067.0,63066.0,0.005]
[1719846728402,0.20371499,63067.0,63066.0,0.005]
[1719846728599,0.20371499,63067.0,63066.0,0.004]
[1719846728991,0.20571499,63067.0,63066.0,0.005]
[1719846729621,0.20571499,63067.0,63066.0,0.001]
[1719846730192,0.20571499,63067.0,63066.0,0.002]
[1719846730193,0.8926893,63067.0,63066.0,0.002]
[1719846730563,0.8926893,63067.0,63066.0,0.001]
[1719846730564,0.8876893,63067.0,63066.0,0.001]
[1719846731127,0.8926893,63067.0,63066.0,0.002]
[1719846731560,0.8926893,63067.0,63066.0,0.001]
[1719846731561,1.0876893,63067.0,63066.0,0.001]
[1719846731763,0.5247,63061.0,63060.0,0.000924]
[1719846731962,1.71649567,63061.0,63060.0,0.000924]
[1719846732184,1.73949567,63061.0,63060.0,0.000924]
[1719846732989,1.93949567,63061.0,63060.0,0.000924]
[1719846733152,1.99306162,63061.0,63060.0,0.000924]
[1719846733339,1.79306162,63061.0,63060.0,0.000924]
[1719846733809,1.99306162,63061.0,63060.0,0.000924]
[1719846734048,2.01206162,63061.0,63060.0,0.001924]
[1719846734195,1.81206162,63061.0,63060.0,0.001924]
[1719846734399,2.01206162,63061.0,63060.0,0.001924]
[1719846734611,2.01206162,63061.0,63031.0,0.317301]
[1719846734612,0.0778,63044.0,63038.0,0.02393342]
[1719846734784,0.0778,63044.0,63028.0,0.0827]
[1719846734785,0.0778,63044.0,63027.0,0.47591475]
[1719846734786,0.11879984,63039.0,63027.0,0.47591475]
[1719846734983,0.18233898,63039.0,63024.0,0.0636]
[1719846735181,0.07934304,63042.0,63024.0,0.0636]
[1719846735182,0.09504474,63034.0,63024.0,0.0636]
[1719846735485,0.09504474,63036.0,63024.0,0.0636]
[1719846735686,0.09504474,63036.0,63024.0,0.0876492]
[1719846735886,0.09504474,63036.0,63028.0,0.158658]
[1719846736084,0.1439,63044.0,63028.0,0.158658]
[1719846736085,0.09504474,63038.0,63028.0,0.158658]
[1719846736290,0.004,63039.0,63025.0,0.317333]
[1719846736495,0.004,63039.0,63026.0,0.258663]
[1719846736496,0.00750204,63037.0,63026.0,0.258663]
[1719846736674,0.00748535,63038.0,63026.0,0.258663]
[1719846737077,0.001,63036.0,63026.0,0.258663]
[1719846737513,0.10253009,63038.0,63026.0,0.258663]
[1719846737514,0.09504474,63038.0,63026.0,0.258663]
[1719846737721,0.09492387,63039.0,63026.0,0.258663]
[1719846737930,0.07934304,63034.0,63026.0,0.101]
[1719846738336,0.00748492,63033.0,63026.0,0.001]
[1719846738665,0.14808492,63033.0,63024.0,0.0240492]
[1719846738895,0.14808492,63033.0,63021.0,0.258676]
[1719846739770,0.14808492,63033.0,63021.0,0.1]
[1719846739970,0.14808492,63033.0,63019.0,0.463862]
[1719846739971,0.14808492,63033.0,63020.0,0.1]
[1719846740560,0.14808492,63033.0,63021.0,0.004]
[1719846740783,0.07934304,63027.0,63021.0,0.004]
[1719846740995,0.07934304,63027.0,63020.0,0.1]
[1719846741213,0.3304239,63033.0,63020.0,0.1]
[1719846741214,0.0074465,63026.0,63020.0,0.1]
[1719846741433,0.0074465,63026.0,63020.0,0.104]
[1719846741639,0.32293898,63033.0,63020.0,0.104]
[1719846741856,0.07271153,63032.0,63020.0,0.104]
[1719846742173,0.08016753,63032.0,63020.0,0.104]
[1719846742745,0.001,63026.0,63020.0,0.104]
[1719846743164,0.023,63030.0,63020.0,0.104]
[1719846743582,0.00744839,63029.0,63020.0,0.104]
[1719846743779,0.07934304,63027.0,63020.0,0.1]
[1719846744162,0.00743888,63026.0,63021.0,0.011]
[1719846744477,0.00743888,63026.0,63020.0,0.1]
[1719846744880,0.00743888,63026.0,63020.0,0.109]
[1719846745130,0.18633898,63032.0,63020.0,0.1]
[1719846745296,0.00743698,63025.0,63020.0,0.1]
[1719846747769,0.002,63024.0,63017.0,0.18413683]
[1719846748797,0.008,63024.0,63017.0,0.18513683]
[1719846749039,0.008,63024.0,63017.0,0.20513683]
[1719846749243,0.008,63024.0,63019.0,0.02]
[1719846749445,0.008,63024.0,63020.0,0.0832]
[1719846749762,0.008,63024.0,63022.0,0.0648]
[1719846751117,0.1409,63037.0,63022.0,0.0648]
[1719846751323,0.47591475,63043.0,63027.0,0.02]
[1719846751493,0.0621,63043.0,63032.0,0.062]
[1719846751672,0.0965,63047.0,63034.0,0.0809]
[1719846751873,0.16233898,63046.0,63034.0,0.0809]
[1719846752639,0.07934304,63042.0,63034.0,0.0809]
[1719846753079,0.07934304,63042.0,63034.0,0.239543]
[1719846753494,0.0158,63047.0,63035.0,0.02]
[1719846753696,0.014,63046.0,63040.0,0.158628]
[1719846754011,0.014,63046.0,63039.0,0.158631]
[1719846754234,0.0158,63047.0,63039.0,0.158631]
[1719846754441,0.0158,63047.0,63041.0,0.0604]
[1719846754645,0.01,63042.0,63041.0,0.0604]
[1719846755020,0.00969371,63042.0,63041.0,0.476953]
[1719846755243,0.00969371,63042.0,63041.0,0.932832]
[1719846755951,0.00969371,63042.0,63041.0,0.952832]
[1719846756166,0.22044304,63056.0,63045.0,0.158614]
[1719846756407,0.15604304,63056.0,63043.0,0.02]
[1719846756574,0.07934304,63056.0,63049.0,0.475819]
[1719846757162,0.07934304,63056.0,63049.0,0.158606]
[1719846757367,0.0168,63050.0,63049.0,0.158606]
[1719846758395,0.0108,63050.0,63049.0,0.158606]
[1719846760792,0.0128,63050.0,63049.0,0.160606]
[1719846761782,0.0128,63050.0,63049.0,0.477819]
[1719846762008,0.01364,63050.0,63049.0,0.939032]
[1719846762154,0.01364,63050.0,63049.0,0.959032]
[1719846762553,0.01364,63050.0,63049.0,1.276245]
[1719846762759,0.00284,63050.0,63049.0,1.276245]
[1719846763161,0.00284,63050.0,63049.0,1.43858398]
[1719846763366,0.00284,63050.0,63049.0,1.53858398]
[1719846764518,0.00284,63050.0,63049.0,1.039032]
[1719846765332,0.00284,63050.0,63049.0,0.102]
[1719846765740,0.00284,63050.0,63049.0,0.597819]
[1719846766156,0.00284,63050.0,63049.0,0.895032]
[1719846766391,0.00284,63050.0,63049.0,0.980132]
[1719846766743,0.07802304,63067.0,63053.0,0.158594]
[1719846766941,0.47591475,63065.0,63053.0,0.158594]
[1719846767142,0.07802304,63067.0,63054.0,0.158591]
[1719846767349,0.07802304,63067.0,63053.0,0.337192]
[1719846767550,0.07802304,63067.0,63054.0,0.0816]
[1719846767755,0.07802304,63067.0,63054.0,0.240193]
[1719846768088,0.10423634,63067.0,63054.0,0.240193]
[1719846768503,0.07802304,63067.0,63054.0,0.0816]
[1719846768702,0.07802304,63067.0,63053.0,0.158596]
[1719846769069,0.07934304,63060.0,63051.0,0.317198]
[1719846769314,0.07934304,63060.0,63052.0,0.158598]
[1719846769521,0.07802304,63067.0,63054.0,0.001]
[1719846769522,0.09202304,63067.0,63054.0,0.001]
[1719846770106,0.146,63059.0,63054.0,0.001]
[1719846770506,0.1414,63065.0,63054.0,0.001]
[1719846770711,0.1414,63065.0,63051.0,0.317199]
[1719846770712,0.023,63064.0,63052.0,0.158599]
[1719846771221,0.023,63064.0,63053.0,0.001]
[1719846771607,0.023,63064.0,63052.0,0.158599]
[1719846771820,0.023,63064.0,63054.0,0.001]
[1719846772179,0.1534,63065.0,63054.0,0.001]
[1719846772381,0.1414,63065.0,63053.0,0.158596]
[1719846772707,0.1414,63065.0,63054.0,0.001]
[1719846773027,0.012,63064.0,63054.0,0.001]
[1719846773230,0.012,63064.0,63053.0,0.159596]
[1719846773404,0.012,63064.0,63054.0,0.001]
[1719846774016,0.012,63064.0,63053.0,0.001]
[1719846774338,0.1414,63065.0,63052.0,0.158597]
[1719846774474,0.009,63064.0,63054.0,0.002]
[1719846774884,0.009,63064.0,63054.0,0.001]
[1719846775542,0.022,63064.0,63054.0,0.002]
[1719846775746,0.013,63064.0,63054.0,0.001]
[1719846776144,0.022,63064.0,63054.0,0.001]
[1719846776787,0.013,63064.0,63054.0,0.001]
[1719846777299,0.022,63064.0,63054.0,0.160594]
[1719846777440,0.022,63064.0,63054.0,0.002]
[1719846779289,0.013187,63063.0,63054.0,0.002]
[1719846779486,0.022,63064.0,63054.0,0.002]
[1719846779694,0.01318693,63063.0,63054.0,0.002]
[1719846780031,0.01318737,63062.0,63054.0,0.002]
[1719846780184,0.013,63064.0,63054.0,0.001]
[1719846780393,0.07934304,63056.0,63054.0,0.001]
[1719846780734,0.07934304,63056.0,63054.0,0.002]
[1719846781160,0.21233898,63063.0,63054.0,0.002]
[1719846781368,0.1448,63059.0,63054.0,0.002]
[1719846781578,0.19852714,63058.0,63054.0,0.0049]
[1719846781773,0.01318816,63057.0,63054.0,0.0049]
[1719846781929,0.023,63056.0,63054.0,0.0049]
[1719846782144,0.023,63056.0,63054.0,0.0039]
[1719846782544,0.07934304,63060.0,63054.0,0.0049]
[1719846782545,0.0638,63060.0,63054.0,0.0049]
[1719846782778,0.012,63063.0,63054.0,0.0049]
[1719846782779,0.01318783,63059.0,63054.0,0.0049]
[1719846782971,0.01318783,63058.0,63054.0,0.0049]
[1719846783133,0.012,63063.0,63054.0,0.0049]
[1719846783333,0.03618761,63062.0,63054.0,0.0049]
[1719846783533,0.01318761,63061.0,63054.0,0.0059]
[1719846783733,0.01318761,63060.0,63054.0,0.0059]
[1719846784014,0.023,63062.0,63054.0,0.0049]
[1719846784227,0.013187,63061.0,63054.0,0.0039]
[1719846784542,0.013187,63060.0,63054.0,0.0039]
[1719846784746,0.013187,63059.0,63054.0,0.0039]
[1719846784891,0.013187,63058.0,63054.0,0.0039]
[1719846785077,0.023,63062.0,63054.0,0.0039]
[1719846785292,0.01318722,63061.0,63054.0,0.0049]
[1719846785461,0.023,63062.0,63054.0,0.0049]
[1719846785660,0.01318714,63061.0,63054.0,0.0049]
[1719846786049,0.023,63062.0,63054.0,0.0049]
[1719846786196,0.01318706,63060.0,63054.0,0.0049]
[1719846786367,0.01318706,63059.0,63054.0,0.0049]
[1719846786566,0.001,63056.0,63054.0,0.0049]
[1719846786802,0.023,63062.0,63054.0,0.0049]
[1719846787003,0.01318718,63061.0,63054.0,0.0039]
[1719846787367,0.001,63058.0,63054.0,0.0039]
[1719846787564,0.01318718,63057.0,63054.0,0.0039]
[1719846787948,0.001,63056.0,63054.0,0.0039]
[1719846788731,0.01318742,63055.0,63054.0,0.0039]
[1719846788930,0.01318742,63055.0,63054.0,0.0049]
[1719846790813,0.01318742,63055.0,63054.0,0.0039]
[1719846791189,0.01318742,63055.0,63054.0,0.0059]
[1719846791557,0.01318742,63055.0,63054.0,0.0039]
[1719846791920,0.001,63055.0,63054.0,0.0039]
[1719846792074,0.01418801,63055.0,63054.0,0.0069]
[1719846795409,0.01418815,63055.0,63054.0,0.0069]
[1719846796672,0.01418815,63055.0,63054.0,0.007824]
[1719846798715,0.09228815,63055.0,63054.0,0.007824]
[1719846798926,0.0922882,63055.0,63054.0,0.007824]
[1719846799486,0.23508718,63055.0,63054.0,0.007824]
[1719846800759,0.0922882,63055.0,63054.0,0.007824]
[1719846801343,0.0791,63055.0,63054.0,0.007824]
[1719846801552,0.01418829,63055.0,63054.0,0.007824]
[1719846804391,0.01418829,63055.0,63054.0,0.147424]
[1719846804584,0.001,63055.0,63054.0,0.147424]
[1719846804784,0.01418769,63055.0,63054.0,0.147424]
[1719846806305,0.01418769,63055.0,63054.0,0.071324]
[1719846806488,0.01418705,63055.0,63054.0,0.567106]
[1719846806684,0.01418705,63055.0,63054.0,0.643706]
[1719846806888,0.001,63055.0,63054.0,0.643706]
[1719846807899,0.001,63055.0,63054.0,0.736606]
[1719846808099,0.001,63055.0,63054.0,1.053794]
[1719846809043,0.001,63055.0,63054.0,0.940894]
[1719846809304,0.001,63055.0,63054.0,1.033794]
[1719846809823,0.001,63055.0,63054.0,0.940894]
[1719846811109,0.001,63055.0,63054.0,0.960894]
[1719846812834,0.1201016,63055.0,63054.0,0.960894]
[1719846813029,0.001,63055.0,63054.0,0.960894]
[1719846813280,0.12010075,63055.0,63054.0,0.960894]
[1719846813617,0.12010075,63055.0,63054.0,0.940894]
[1719846814061,0.001,63055.0,63054.0,0.940894]
[1719846814211,0.12009814,63055.0,63054.0,0.940894]
[1719846814400,0.12009814,63055.0,63054.0,0.960894]
[1719846815250,0.11979185,63055.0,63054.0,0.960894]
[1719846815706,0.00069371,63055.0,63054.0,1.67272098]
[1719846815908,0.00069371,63055.0,63054.0,1.77272098]
[1719846816138,0.00069371,63055.0,63054.0,1.610382]
[1719846816556,0.00069371,63055.0,63054.0,1.77272098]
[1719846816789,0.0952684,63061.0,63060.0,0.792895]
[1719846817025,0.11909814,63063.0,63062.0,0.158574]
[1719846817225,0.00084,63067.0,63063.0,0.158571]
[1719846817226,0.11909814,63064.0,63063.0,0.158571]
[1719846817464,0.00084,63067.0,63064.0,0.158566]
[1719846817667,0.00084,63067.0,63065.0,0.158566]
[1719846818941,0.00084,63067.0,63063.0,0.008]
[1719846818942,0.2355284,63066.0,63063.0,0.008]
[1719846819151,0.15600248,63065.0,63058.0,0.158584]
[1719846819349,0.11900885,63059.0,63058.0,0.158584]
[1719846819463,0.11900885,63059.0,63058.0,0.258584]
[1719846819668,0.11900885,63059.0,63058.0,0.1]
[1719846820466,0.11900533,63059.0,63058.0,0.1]
[1719846820690,0.11900533,63060.0,63058.0,0.1]
[1719846821001,0.1190035,63060.0,63059.0,0.158581]
[1719846821578,0.1190035,63061.0,63059.0,0.158581]
[1719846821980,0.1190035,63060.0,63059.0,0.158581]
[1719846822586,0.1190035,63061.0,63059.0,0.164581]
[1719846822794,0.1200035,63060.0,63059.0,0.164581]
[1719846823754,0.001,63060.0,63059.0,0.164581]
[1719846824001,0.1200035,63060.0,63059.0,0.164581]
[1719846824223,0.1200035,63060.0,63059.0,0.006]
[1719846824903,0.1190035,63060.0,63058.0,0.258583]
[1719846825309,0.1190035,63060.0,63059.0,0.004]
[1719846825669,0.1190035,63060.0,63058.0,0.258583]
[1719846826260,0.1190035,63061.0,63060.0,0.158579]
[1719846826479,0.09517819,63061.0,63060.0,0.158579]
[1719846826707,0.00084,63067.0,63059.0,0.323163]
[1719846827038,0.09517333,63065.0,63062.0,0.02]
[1719846827266,0.09517333,63066.0,63065.0,0.158566]
[1719846827626,0.09517333,63066.0,63065.0,0.475699]
[1719846828196,0.09601333,63067.0,63066.0,0.158564]
[1719846828395,0.00084,63067.0,63066.0,0.158564]
[1719846829225,0.09597435,63067.0,63066.0,0.158564]
[1719846829622,0.10297435,63067.0,63066.0,0.158564]
[1719846830034,0.10297457,63067.0,63066.0,0.158564]
[1719846830376,0.10297457,63067.0,63066.0,0.475692]
[1719846830609,0.10297457,63067.0,63066.0,0.536692]
[1719846830610,0.00784,63067.0,63066.0,0.536692]
[1719846830805,0.00784,63067.0,63066.0,0.85382]
[1719846831007,0.00784,63067.0,63066.0,0.536692]
[1719846831223,0.01084,63067.0,63066.0,0.536692]
[1719846831514,0.01084,63067.0,63066.0,0.158564]
[1719846832172,0.00384,63067.0,63066.0,0.158564]
[1719846832581,0.00384,63067.0,63066.0,0.160564]
[1719846832784,0.00084,63067.0,63066.0,0.158564]
[1719846832991,0.00084,63067.0,63066.0,0.251464]
[1719846833210,0.00184,63067.0,63066.0,0.264464]
[1719846833795,0.00084,63067.0,63066.0,0.254464]
[1719846834195,0.00084,63067.0,63066.0,0.260464]
[1719846834398,0.00184,63067.0,63066.0,0.260464]
[1719846834610,0.00184,63067.0,63066.0,0.1019]
[1719846835588,0.00184,63067.0,63066.0,0.260464]
[1719846836229,0.00184,63067.0,63066.0,0.577592]
[1719846836477,0.00184,63067.0,63066.0,0.597592]
[1719846836662,0.00184,63067.0,63066.0,0.91472]
[1719846837273,0.00184,63067.0,63066.0,0.89472]
[1719846838574,0.00184,63067.0,63066.0,0.91827978]
[1719846838987,0.00184,63067.0,63066.0,0.93827978]
[1719846840231,0.00184,63067.0,63066.0,0.91827978]
[1719846841243,0.00184,63067.0,63066.0,0.93827978]
[1719846843322,0.00184,63067.0,63066.0,0.82537978]
[1719846843510,0.00184,63067.0,63066.0,0.91827978]
[1719846844571,0.00184,63067.0,63066.0,0.60115178]
[1719846846405,0.00184,63067.0,63066.0,0.62115178]
[1719846847002,0.00184,63067.0,63066.0,1.10061876]
[1719846847263,0.00184,63067.0,63066.0,1.34841876]
[1719846847671,0.0100255,63079.0,63076.0,0.02]
[1719846847884,0.0084,63089.0,63088.0,0.460308]
[1719846848093,0.1425458,63099.0,63088.0,0.460308]
[1719846848094,0.07125549,63101.0,63100.0,0.163]
[1719846848299,0.16036403,63116.0,63100.0,0.163]
[1719846848300,0.56297024,63117.0,63102.0,0.49542]
[1719846848516,0.56297024,63117.0,63102.0,0.57542]
[1719846848517,0.1509,63114.0,63102.0,0.57542]
[1719846848722,0.1509,63114.0,63102.0,0.1929]
[1719846848930,0.22215549,63114.0,63102.0,0.68832]
[1719846849135,0.1509,63114.0,63102.0,0.68832]
[1719846849355,0.1509,63114.0,63102.0,1.005267]
[1719846849557,0.0084,63114.0,63113.0,0.812227]
[1719846849763,0.00841,63125.0,63113.0,0.812227]
[1719846849764,0.00841,63125.0,63113.0,0.258831]
[1719846849975,0.00841,63125.0,63119.0,0.158429]
[1719846850180,0.00841,63125.0,63117.0,0.2319]
[1719846850181,0.00841,63125.0,63120.0,0.1]
[1719846850385,0.00841,63125.0,63124.0,0.158418]
[1719846850588,0.00841,63125.0,63124.0,0.475254]
[1719846850799,0.00841,63125.0,63124.0,0.158418]
[1719846851012,0.01041,63125.0,63124.0,0.475254]
[1719846851215,0.01041,63125.0,63124.0,0.158418]
[1719846851418,0.00841,63125.0,63124.0,0.158418]
[1719846851626,0.00841,63125.0,63124.0,0.475254]
[1719846851840,0.01141,63125.0,63124.0,0.475254]
[1719846852922,0.01741,63125.0,63124.0,0.475254]
[1719846853124,0.01141,63125.0,63124.0,0.475254]
[1719846853459,0.01141,63125.0,63124.0,0.79209]
[1719846853662,0.01641,63125.0,63124.0,0.79209]
[1719846853795,0.00841,63125.0,63124.0,0.79209]
[1719846854203,0.00841,63125.0,63124.0,1.128926]
[1719846854413,0.00841,63125.0,63124.0,1.39726498]
[1719846854852,0.00841,63125.0,63124.0,1.59726498]
[1719846855024,0.00841,63125.0,63124.0,1.39426498]
[1719846855166,0.00841,63131.0,63127.0,1.128873]
[1719846855167,0.00181,63128.0,63127.0,1.128873]
[1719846855378,0.00841,63131.0,63130.0,0.178403]
[1719846855574,0.00841,63131.0,63130.0,1.4682523]
[1719846856019,0.00841,63131.0,63130.0,1.78189098]
[1719846856365,0.00841,63131.0,63130.0,1.599552]
[1719846856575,0.00841,63131.0,63130.0,1.282746]
[1719846857005,0.00841,63131.0,63124.0,0.1024]
[1719846857006,0.001,63125.0,63124.0,0.006]
[1719846857240,0.002,63125.0,63124.0,0.12]
[1719846857451,0.001,63125.0,63124.0,0.114]
[1719846857625,0.07934304,63129.0,63120.0,0.316855]
[1719846857823,0.07934304,63129.0,63122.0,0.158421]
[1719846858006,0.15751,63131.0,63130.0,0.006]
[1719846858653,0.34184898,63131.0,63121.0,0.1]
[1719846858859,0.18533898,63130.0,63120.0,0.1]
[1719846859548,0.07934304,63129.0,63119.0,0.158831]
[1719846859752,0.07934304,63129.0,63099.0,0.516962]
[1719846859753,0.07934304,63121.0,63102.0,0.158831]
[1719846859958,0.07934304,63112.0,63102.0,0.158831]
[1719846860160,0.02,63117.0,63100.0,0.158478]
[1719846860361,0.16233898,63117.0,63101.0,0.158475]
[1719846860565,0.16233898,63117.0,63102.0,0.158473]
[1719846860801,0.00736258,63116.0,63102.0,0.158473]
[1719846860941,0.00736258,63116.0,63102.0,0.162473]
[1719846861157,0.06,63119.0,63103.0,0.02316924]
[1719846861360,0.0783,63124.0,63112.0,0.2319]
[1719846861559,0.014,63117.0,63112.0,0.2319]
[1719846861783,0.014,63117.0,63112.0,0.158447]
[1719846861784,0.024,63117.0,63112.0,0.158447]
[1719846862013,0.01,63117.0,63112.0,0.158447]
[1719846862248,0.013,63116.0,63112.0,0.158447]
[1719846862629,0.01,63117.0,63112.0,0.158447]
[1719846863087,0.015,63117.0,63113.0,0.158445]
[1719846863290,0.015,63117.0,63116.0,0.475314]
[1719846863436,0.015,63117.0,63116.0,1.14072898]
[1719846863437,0.005,63117.0,63116.0,1.14072898]
[1719846863601,0.005,63117.0,63116.0,0.324638]
[1719846863805,0.005,63117.0,63116.0,0.575314]
[1719846864479,0.005,63117.0,63116.0,0.89219]
[1719846864685,0.0158,63128.0,63118.0,0.316864]
[1719846864840,0.0158,63128.0,63116.0,0.1]
[1719846864841,0.00735489,63127.0,63121.0,0.3132]
[1719846865039,0.0158,63128.0,63126.0,0.158413]
[1719846865584,0.0158,63128.0,63121.0,0.2319]
[1719846865798,0.0158,63128.0,63124.0,0.158418]
[1719846866052,0.0158,63128.0,63125.0,0.158415]
[1719846866222,0.0158,63128.0,63124.0,0.158418]
[1719846866427,0.0228,63128.0,63125.0,0.158415]
[1719846867032,0.0228,63128.0,63125.0,0.31683]
[1719846867281,0.0228,63128.0,63126.0,0.158412]
[1719846867482,0.0228,63128.0,63127.0,0.475231]
[1719846867830,0.0228,63128.0,63127.0,0.15841]
[1719846868613,0.0158,63128.0,63127.0,0.15841]
[1719846869062,0.0208,63128.0,63127.0,0.15841]
[1719846869269,0.0208,63128.0,63124.0,0.00316798]
[1719846869270,0.0158,63128.0,63124.0,0.00316798]
[1719846869471,0.0158,63128.0,63125.0,0.158415]
[1719846869693,0.0158,63128.0,63127.0,0.002]
[1719846869820,0.0158,63128.0,63125.0,0.158415]
[1719846870224,0.0158,63128.0,63127.0,0.007]
[1719846870459,0.0158,63128.0,63127.0,0.16541]
[1719846870636,0.0158,63128.0,63126.0,0.158413]
[1719846870839,0.0158,63128.0,63125.0,0.00316798]
[1719846871046,0.0158,63128.0,63126.0,0.158411]
[1719846872378,0.0158,63128.0,63127.0,0.001]
[1719846872789,0.0158,63128.0,63126.0,0.158411]
[1719846873355,0.0158,63128.0,63126.0,0.001]
[1719846873492,0.0158,63128.0,63126.0,0.004]
[1719846873691,0.0158,63128.0,63127.0,0.001]
[1719846874097,0.1471,63127.0,63126.0,0.004]
[1719846874306,0.15445271,63127.0,63126.0,0.004]
[1719846874501,0.15445271,63127.0,63126.0,0.001]